Cogmind - Beta 14 @@@ ROGUE MODE // 2024.09.05 @ 14:03:38 Player: cptwinky Result: Destroyed by H-71 Marshal with Heavy Mass Driver Performance ------------- Evolutions (6) 3000 Regions Visited (18) 3600 Robots Destroyed (169) 845 Value Destroyed (6905) 6905 Prototype IDs (47) 940 Alien Tech Used (2) 400 Bonus (5756) 5756 TOTAL SCORE: 21446 Bonus ------- High Alert Combat Kills 1414 Follower Combat Kills 1999 Delivered SUBCON Basin 2000 Registered with UFD 300 Met Imprinter 300 Destroyed Z-Imprinter 1000 Met Zhirov 300 Friendly Fire -1557 Cogmind --------- Core Integrity 0/1150 Matter 264/300 Energy 100/100 System Corruption 11% Temperature Cool (0) Movement Treading (160) Location -4/Factory Parts ------- > --- POWER (2) -------- (None) > --- PROPULSION (6) --- Improved Heavy Treads > --- UTILITY (8) ------ Improved Targeting Computer Improved Targeting Computer Advanced Targeting Computer Improved Weapon Shielding (fused) Hacking Suite Advanced Hacking Suite Advanced System Shield > --- WEAPON (3) ------- (None) > --- INVENTORY (5) ---- Seismic Detector Enhanced Scrap Shield Authchip [Weapon] Power Maul Peak State ------------ > --- POWER ------------ Neutrino Core Neutrino Core > --- PROPULSION ------- Zionite Composite Leg I Enhanced Flexi-carbon Leg Myomer Leg Myomer Leg Myomer Leg Myomer Leg > --- UTILITY ---------- Scrap Suit High-capacity Storage Unit Advanced Targeting Computer Improved Phase Shifter Enhanced Scrap Shield Tech Extrapolator > --- WEAPON ----------- Plasma Rifle Overtuned Coil Gun Neutron Missile Launcher > --- INVENTORY -------- Neutrino Core Myomer Leg Advanced Heat Sink Zionite Biocell Deep Structural Scanner Surveybot 17 Chip Seismic Detector Tactical Coordination Suite Recoil Stabilizer Precision Matter Filter Advanced Hacking Suite High-powered Tractor Beam Hacking Drone Bay Transdimensional Reconstructor HERF Cannon Dirty Datajack Datajack Multitool CR-A16's Pointy Stick [Rating: 119] Favorites ----------- Power Angular Momentum Engine Engine Angular Momentum Engine Power Core Neutrino Core Reactor Zionite Light DM Reactor Propulsion Overtuned Titanium Leg Treads Light Treads Leg Overtuned Titanium Leg Wheel Compact Wheel Hover Unit Cooled Gravmag System Flight Unit Nuclear Pulse Array Utility Tech Extrapolator Device Scrap Suit Storage High-capacity Storage Unit Processor Tech Extrapolator Hackware Advanced Hacking Suite Protection Layered Medium Armor Plating Weapon Overtuned Coil Gun Energy Gun Subdweller Laser Energy Cannon Subdweller Beam Cannon Ballistic Gun Overtuned Coil Gun Ballistic Cannon Slug Cannon Launcher Heavy Missile Launcher Special Weapon Plasma Cutter Slashing Weapon Makeshift Axe Piercing Weapon CR-A16's Pointy Stick Special Melee Weapon Datajack Build | -11 -10 -10 -8 -8 -6 -6 -6 -6 -6 -5 -5 -5 -5 -5 -4 -4 -4 -4 ------- Run | Yrd Mat Sub Rec Scr Fac Low Low Zio Dee Pro Fac Upp Upp Zhi Pro Fac Was Fac Slots Evolved 12 | . . . . . 8 . . . . . 2 . . . . 2 . . Power 1 | . . . . . 1 . . . . . . . . . . . . . Propulsion 4 | . . . . . 2 . . . . . 1 . . . . 1 . . Utility 6 | . . . . . 4 . . . . . 1 . . . . 1 . . Weapon 1 | . . . . . 1 . . . . . . . . . . . . . Parts Attached 256 | 6 14 25 6 9 24 11 14 5 29 4 16 6 1 8 6 27 13 32 Power 21 | 1 1 5 . 1 1 . 1 1 2 . 1 1 . . 2 2 . 2 Engine 12 | 1 1 5 . . 1 . 1 1 1 . . 1 . . . . . . Core 8 | . . . . 1 . . . . . . 1 . . . 2 2 . 2 Reactor 1 | . . . . . . . . . 1 . . . . . . . . . Propulsion 47 | 2 2 4 4 3 7 . . . 2 . 4 . 1 2 . 6 1 9 Treads 11 | 2 2 1 2 2 . . . . . . . . . . . . . 2 Leg 28 | . . . . . 7 . . . 2 . 4 . 1 1 . 6 1 6 Wheel 6 | . . 3 2 1 . . . . . . . . . . . . . . Hover 1 | . . . . . . . . . . . . . . 1 . . . . Flight 1 | . . . . . . . . . . . . . . . . . . 1 Utility 71 | 1 1 4 . 2 5 3 5 2 10 1 6 1 . 4 1 8 5 12 Device 46 | . . 2 . . 3 3 5 2 7 1 5 1 . 2 1 6 4 4 Storage 6 | 1 . 1 . . 1 . . . 1 . . . . 1 . 1 . . Processor 5 | . . . . 1 1 . . . . . . . . . . . . 3 Hackware 3 | . . . . . . . . . . . . . . . . . . 3 Protection 11 | . 1 1 . 1 . . . . 2 . 1 . . 1 . 1 1 2 Artifact . | . . . . . . . . . . . . . . . . . . . Weapon 117 | 2 10 12 2 3 11 8 8 2 15 3 5 4 . 2 3 11 7 9 Energy Gun 13 | . 3 4 . . . . . . 2 . . . . . . 1 2 1 Energy Cannon 8 | . . 3 . . . . . . 1 . . . . . . 3 . 1 Ballistic Gun 45 | 2 4 4 1 2 5 4 3 . 6 2 2 2 . 1 1 2 2 2 Ballistic Cannon 4 | . . 1 . . . . . . . . . . . . . . . 3 Launcher 22 | . . . . . 3 1 2 1 5 1 2 2 . . . 4 1 . Special Weapon 6 | . 3 . . . . 1 1 1 . . . . . . . . . . Impact Weapon . | . . . . . . . . . . . . . . . . . . . Slashing Weapon 8 | . . . 1 . 3 2 2 . . . . . . . . . . . Piercing Weapon 8 | . . . . . . . . . 1 . 1 . . 1 1 1 2 1 Special Melee Weapon 3 | . . . . 1 . . . . . . . . . . 1 . . 1 Unidentified Prototypes 21 | . . . . . . . . 1 10 . 1 . . 5 . 2 1 1 Parts Lost 37 | . . 6 . . . . . . . . . . . . . 2 3 26 Power 6 | . . 2 . . . . . . . . . . . . . . . 4 Propulsion 15 | . . 2 . . . . . . . . . . . . . . 1 12 Utility 7 | . . 2 . . . . . . . . . . . . . . . 5 Weapon 9 | . . . . . . . . . . . . . . . . 2 2 5 Highest Loss Streak 12 | . . 3 . . . . . . . . . . . . . 1 2 12 To Critical Strikes . | . . . . . . . . . . . . . . . . . . . Average Slot Usage (%) 93 | . 98 95 100 99 92 93 93 93 92 93 94 94 94 92 94 88 83 76 Engine 7 | . 14 13 14 1 5 6 6 10 13 13 7 5 5 5 3 . . . Core 4 | . . . . 12 6 6 6 2 . . 2 5 5 5 7 10 10 6 Treads 6 | . 27 18 5 7 . . . . . . . . . . . . . 1 Leg 15 | . . . . . 25 26 26 26 26 26 29 29 29 29 29 30 30 23 Wheel 5 | . . 9 22 20 . . . . . . . . . . . . . . Device 7 | . . 9 . . 12 13 13 13 12 13 11 11 11 9 11 10 10 9 Storage 9 | . 14 14 14 14 6 6 6 6 6 6 5 5 5 5 5 5 5 3 Processor 7 | . . . . 6 12 13 13 13 13 13 11 11 11 11 11 10 10 8 Protection 4 | . 12 . 14 7 . . . . . . 5 5 5 5 5 5 4 4 Energy Gun 3 | . 10 14 . . . . . . . . . . . . . 1 5 5 Ballistic Gun 14 | . 15 7 19 19 17 19 18 13 15 19 16 16 17 16 16 12 2 2 Special Melee Weapon 1 | . . . . 8 . . . . . . . . . . . . . . Peak Build Rating 119 | 6 7 33 35 28 64 71 72 73 84 80 95 92 95 98 97 119 119 119 Average Rating 55 | 5 6 14 29 21 61 64 69 68 75 79 91 91 93 93 96 113 108 97 On Entrance 64 | . 6 7 33 16 28 63 71 67 70 76 80 90 92 95 96 97 119 117 Naked Turns . | . . . . . . . . . . . . . . . . . . . Heaviest Build 111 | 10 16 58 57 59 55 61 62 72 72 72 81 82 80 80 81 108 111 111 Greatest Support 155 | 40 40 40 20 28 73 73 73 73 83 83 116 111 116 116 116 155 152 153 Greatest Overweight (x) 3 | . . 3 3 3 . . . . . . . . . . . . . 1 Average Overweight (x) . | . . 1 2 1 . . . . . . . . . . . . . . Largest Inventory Capacity 20 | 8 8 20 20 20 20 15 15 15 15 15 15 15 15 15 15 20 20 20 Average Capacity 15 | 7 8 14 20 20 15 15 15 15 15 15 15 15 15 15 15 19 20 16 Most Carried 20 | 8 8 20 20 20 18 15 15 15 15 15 15 15 15 15 15 20 20 20 Average Carried 15 | 4 7 11 17 19 14 14 14 14 14 15 14 15 14 14 15 17 19 15 Final Capacity 20 | 8 8 20 20 20 15 15 15 15 15 15 15 15 15 15 15 20 20 5 Final Carried 20 | 8 7 20 14 20 15 15 15 15 15 15 15 15 15 15 15 20 20 5 Class Distribution -------------------- 24% | Scavenger-Mutant 23% | Mutant 13% | Scrapper 12% | Scavenger-Scrapper 10% | Scavenger-Gunner 7% | Derelict-Scrapper 6% | Commander-Scrapper Dominant Class ---------------- Mutant | -10/Materials Scavenger-Mutant | -10/Subcaves Scavenger-Mutant | -8/Recycling Mutant | -8/Scraptown Scrapper | -6/Factory Commander-Scrapper | -6/Lower Caves Commander-Scrapper | -6/Lower Caves Derelict-Scrapper | -6/Zion Scrapper | -6/Deep Caves Scrapper | -5/Proximity Caves Scavenger-Scrapper | -5/Factory Scavenger-Scrapper | -5/Upper Caves Scavenger-Scrapper | -5/Upper Caves Scavenger-Scrapper | -5/Zhirov Scavenger-Scrapper | -4/Proximity Caves Scavenger-Gunner | -4/Factory Scavenger-Mutant | -4/Waste Scavenger-Gunner | -4/Factory Resources | -11 -10 -10 -8 -8 -6 -6 -6 -6 -6 -5 -5 -5 -5 -5 -4 -4 -4 -4 ----------- Run | Yrd Mat Sub Rec Scr Fac Low Low Zio Dee Pro Fac Upp Upp Zhi Pro Fac Was Fac Matter Collected 6073 | 260 230 355 76 292 567 194 405 50 496 337 454 261 10 90 138 1040 221 597 Remotely . | . . . . . . . . . . . . . . . . . . . Salvage Created 9092 | 73 342 597 244 . 702 175 438 . 340 250 1286 106 . 91 99 2245 580 1524 Parts 429 | 7 23 37 10 . 34 18 24 . 13 15 62 6 . 1 7 86 10 76 Haulers Intercepted 6 | . 2 . . . 1 . . . . . 1 . . . . 2 . . Recyclers Shooed 9 | . 2 . . . 1 . . . . . 3 . . . . 1 . 2 Parts Field Recycled . | . . . . . . . . . . . . . . . . . . . Retrieved Matter . | . . . . . . . . . . . . . . . . . . . Parts Self-Destructed 115 | . . 21 . . . 13 27 . . 22 . 10 . 1 21 . . . Prevented 5 | . . . . . . . 5 . . . . . . . . . . . Kills | -11 -10 -10 -8 -8 -6 -6 -6 -6 -6 -5 -5 -5 -5 -5 -4 -4 -4 -4 ------- Run | Yrd Mat Sub Rec Scr Fac Low Low Zio Dee Pro Fac Upp Upp Zhi Pro Fac Was Fac Combat Hostiles Destroyed 125 | . 7 14 1 . 6 3 9 . 10 5 15 4 . . 2 25 2 22 Guns 73 | . 7 7 1 . 6 1 4 . 2 5 10 1 . . 2 16 . 11 Cannons 13 | . . 7 . . . . . . . . . . . . . 1 . 5 AOE 35 | . . . . . . 2 5 . 8 . 5 3 . . . 7 2 3 Classes Destroyed 24 | 1 4 2 2 . 3 . 3 . 2 1 3 . . . 1 . 2 . Worker 10 | . . . . . 1 . . . . . 4 . . . . 2 . 3 Builder 5 | . . . . . . . . . . . 1 . . . . . . 4 Tunneler 4 | 3 . . . . . . . . . . . . . . . 1 . . Hauler 6 | . 2 . . . 1 . . . . . 1 . . . . 2 . . Recycler 9 | . . . 3 . 1 . . . . . 2 . . . . 3 . . Minesweeper 1 | . . . . . . . 1 . . . . . . . . . . . Mechanic 3 | . . . . . 1 . . . . . . . . . . 1 . 1 Operator 2 | . . . . . . . . . . . 1 . . . . 1 . . Drone 1 | . . . . . . . . . . . . . . . 1 . . . Turret 1 | . . 1 . . . . . . . . . . . . . . . . Watcher 4 | . 1 . . . 1 . . . . . 1 . . . . . . 1 Swarmer 24 | . 3 2 . . . 2 5 . . 1 6 3 . . . 1 . 1 Grunt 29 | . 4 . . . 3 . 3 . . . 2 . . . . 10 . 7 Brawler 2 | . . . . . . . . . . . 2 . . . . . . . Duelist 4 | . . . . . . . 1 . . . . . . . . 1 . 2 Sentry 13 | . . . 1 . 2 1 . . . . 3 1 . . . 4 . 1 Hunter 10 | . . . . . . . . . . 1 . . . . 1 3 . 5 Programmer 18 | . . . . . 1 . . . . 3 2 . . . . 6 . 6 Compactor 2 | . . . . . . . . . . . . . . . . . 2 . Enhanced Grunt 1 | . . . . . . . . . 1 . . . . . . . . . Subdweller 12 | . . 12 . . . . . . . . . . . . . . . . Scrapoid 1 | . . . . . . . 1 . . . . . . . . . . . Z-Light 4 | . . . . . . . . . 4 . . . . . . . . . Assembled 6 | . . . . . . . . . 6 . . . . . . . . . Martyr 2 | . . . . . . . . . . . . . . . . . 2 . Commander 1 | . . . . . . 1 . . . . . . . . . . . . Best Kill Streak 18 | 2 3 2 3 . 4 2 4 . 3 2 5 3 . . 1 5 2 18 Combat Bots Only 7 | . 3 2 1 . 3 2 4 . 3 2 4 3 . . 1 5 2 7 Max Kills in Single Turn 3 | 2 1 2 1 . 1 2 2 . 2 1 3 2 . . 1 2 2 3 Gunslinging . | . . . . . . . . . . . . . . . . . . . Exploded 3 | . . . . . . 2 2 . 2 . 3 2 . . . 2 2 2 Melee . | . . . . . . . . . . . . . . . . . . . Uniques/NPCs Destroyed 1 | . . . . . . . . . 1 . . . . . . . . . Z-Imprinter (-6/Deep Caves) Combat | -11 -10 -10 -8 -8 -6 -6 -6 -6 -6 -5 -5 -5 -5 -5 -4 -4 -4 -4 -------- Run | Yrd Mat Sub Rec Scr Fac Low Low Zio Dee Pro Fac Upp Upp Zhi Pro Fac Was Fac Hostile Shots Fired 860 | . 47 67 2 . 41 10 14 . 21 31 33 17 . . 6 100 3 468 Missed 309 | . 11 16 1 . 17 6 7 . 8 10 14 6 . . 1 37 . 175 Damage Taken 10591 | . 399 1046 13 . 200 70 121 . 330 438 410 206 . . 249 1368 143 5598 Core 1406 | . 43 128 13 . 10 . . . 15 42 9 22 . . 32 12 . 1080 Absorbed by Shields 39 | . . . . . . . . . . . . . . . . . . 39 Redirected to Shielding 27 | . . . . . . . . . . . . . . . . . . 27 Ignored by Resistances 2 | . . . 2 . . . . . . . . . . . . . . . Regen/Repaired (Parts) 460 | . . . . . . . . . . . 60 20 . . 30 70 132 148 Core Remaining (%) 77 | 100 . . . 26 . . . . . 92 . . . . 93 . . . Volleys Fired 420 | 8 53 47 10 . 20 7 21 . 21 24 30 9 . . 6 79 8 77 Largest 3 | 2 2 2 2 . 3 3 3 . 3 3 3 3 . . 3 3 1 3 Hottest 198 | 40 100 140 60 . 94 94 104 . 104 104 104 104 . . 104 147 49 198 Shots Fired 899 | 16 100 90 14 . 45 9 47 . 39 57 80 19 . . 18 165 8 192 Gun 752 | 16 94 68 14 . 42 3 39 . 30 57 77 15 . . 18 134 . 145 Cannon 91 | . . 22 . . . . . . . . . . . . . 22 . 47 Launcher 42 | . . . . . 3 2 4 . 9 . 3 4 . . . 9 8 . Special 14 | . 6 . . . . 4 4 . . . . . . . . . . . Kinetic 620 | 16 66 29 14 . 42 3 39 . 30 57 77 15 . . 18 131 . 83 Thermal 200 | . 34 61 . . . 4 4 . . . . . . . . 3 . 94 Explosive 42 | . . . . . 3 2 4 . 9 . 3 4 . . . 9 8 . Electromagnetic 37 | . . . . . . . . . . . . . . . . 22 . 15 Robot Hit Streak 20 | 6 8 16 10 . 10 15 16 . 5 7 20 8 . . 4 15 13 19 Robot Miss Streak 5 | 2 4 3 1 . 3 . 5 . 3 2 1 1 . . 2 4 . 3 Penetration Max 2 | . . . . . . . 1 . . 1 1 . . . . 2 . 2 Secondary Targets 10 | . 1 1 . . . . 3 . . 1 1 . . . . 1 . 2 Max Gunslinging Chain 1 | . 1 1 . . . . 1 . . 1 1 . . . . 1 . 1 Capacitor 11 | . . . . . . . . . . . . . . . . . . 11 Shots Hit Robots 632 | 9 61 71 7 5 32 9 29 . 21 38 50 11 . 2 13 114 10 150 Core Hits 321 | 7 20 23 4 . 17 10 13 . 22 12 34 9 . 1 5 69 6 69 Critical Kills 15 | . 1 . . . 2 . 1 . 1 1 1 . . . . 3 . 5 Critical Parts Destroyed 35 | . . . . . 2 . 1 . 1 5 5 . . . 1 5 . 15 Critical Strikes 64 | . 1 1 . . 4 . 2 . 2 7 8 . . . 1 10 . 28 Burn 7 | . . . . . . . . . . . . . . . . . . 7 Destroy 53 | . 1 1 . . 4 . 2 . 2 7 7 . . . 1 8 . 20 Corrupt 3 | . . . . . . . . . . . . . . . . 2 . 1 Impale 1 | . . . . . . . . . . . 1 . . . . . . . Melee Attacks 102 | . . . 4 5 17 20 13 1 3 . 5 . . 2 4 3 5 20 Impact . | . . . . . . . . . . . . . . . . . . . Slashing 55 | . . . 4 . 17 20 13 1 . . . . . . . . . . Piercing 42 | . . . . . . . . . 3 . 5 . . 2 4 3 5 20 Sneak Attacks 22 | . . . 1 5 3 4 . . . . 2 . . . 2 1 3 1 Combat Hostiles 3 | . . . . . . . . . . . . . . . 2 . . 1 Follow-up Attacks . | . . . . . . . . . . . . . . . . . . . Damage Inflicted 23616 | 92 653 1351 188 . 1089 538 1344 . 1789 1230 2038 554 . 124 377 6103 1987 4159 Guns 12794 | 92 618 852 124 . 613 18 737 . 595 1230 1663 166 . . 248 3440 . 2398 Cannons 2227 | . . 499 . . . . . . . . . . . . . 634 . 1094 Explosions 6616 | . . . . . 61 212 547 . 965 . 195 388 . . . 1962 1783 503 Melee 1749 | . . . 64 . 415 280 36 . 229 . 134 . . 124 129 63 204 71 Ramming 178 | . 35 . . . . . . . . . 46 . . . . 4 . 93 Kinetic 11486 | 92 406 376 124 . 613 18 737 . 595 1230 1663 166 . . 248 3440 . 1778 Thermal 3341 | . 212 975 . . . 28 24 . . . . . . . . 236 73 1793 Explosive 5804 | . . . . . 61 212 547 . 965 . 195 388 . . . 1726 1710 . Electromagnetic 1058 | . . . . . . . . . . . . . . . . 634 . 424 Impact . | . . . . . . . . . . . . . . . . . . . Slashing 795 | . . . 64 . 415 280 36 . . . . . . . . . . . Piercing 954 | . . . . . . . . . 229 . 134 . . 124 129 63 204 71 Highest Corruption 11 | . . . . . . . . . . 2 . . . . . . . 11 Average Corruption 3 | . . . . . . . . . . 1 . . . . . . . 3 Corruption Purged . | . . . . . . . . . . . . . . . . . . . Corruption Blocked . | . . . . . . . . . . . . . . . . . . . Effects 12 | . . . . . . . . . . 3 . . . . . . . 9 Message Errors 3 | . . . . . . . . . . 1 . . . . . . . 2 Matter Fused 2 | . . . . . . . . . . . . . . . . . . 2 Energy Discharges 2 | . . . . . . . . . . . . . . . . . . 2 Parts Rejected 1 | . . . . . . . . . . . . . . . . . . 1 Parts Fused 1 | . . . . . . . . . . . . . . . . . . 1 Data Loss (minor) 2 | . . . . . . . . . . 2 . . . . . . . . Misdirections 1 | . . . . . . . . . . . . . . . . . . 1 Overload Shots . | . . . . . . . . . . . . . . . . . . . Overflow Damage 594 | . . 35 . . 98 . 118 . 95 . . 23 . . . 110 . 115 Projectiles 79 | . . 35 . . . . . . . . . . . . . 44 . . Explosions 350 | . . . . . 1 . 118 . 27 . . 23 . . . 66 . 115 Melee 165 | . . . . . 97 . . . 68 . . . . . . . . . Knockbacks 16 | . . 1 . . . . . . . . 2 . . . . . . 13 Impact 2 | . . . . . . . . . . . 2 . . . . . . . Kinetic 11 | . . 1 . . . . . . . . . . . . . . . 10 Secondary 3 | . . . . . . . . . . . . . . . . . . 3 Self-Inflicted Damage 137 | . . . . . . . . . . . 27 41 . . . 35 34 . Shots 4 | . . . . . . . . . . . 1 1 . . . 1 1 . Rammed 14 | . 9 . . . . . . . . . . . . . . . . 5 Targets Rammed 27 | . 10 . . . . . . . . . 5 . . . . 1 . 11 Kicked 12 | . . . . . . . . . . . 5 . . . . 1 . 6 Crushed 1 | . 1 . . . . . . . . . . . . . . . . . Highest Temperature 350 | . 195 306 6 . 202 71 336 . 256 290 320 302 . . 283 350 . 249 Average Temperature 86 | . 46 110 4 . 67 38 116 . 82 93 90 89 . . 108 99 . 88 Received Heat Transfer 2391 | . 177 1003 9 . 57 . 21 . 90 33 54 . . . 21 147 . 779 Effects 1 | . . . . . . . 1 . . . . . . . . . . . Energy Bleed 1 | . . . . . . . 1 . . . . . . . . . . . Siege Activations . | . . . . . . . . . . . . . . . . . . . Robots Corrupted 5 | . . . . . . . . . . . . . . . . 3 . 2 Combat Hostiles 3 | . . . . . . . . . . . . . . . . 1 . 2 Parts Fried 6 | . . . . . . . . . . . . . . . . 6 . . Impact Corruptions 1 | . . . . . . . . . . . . . . . . . . 1 Robots Melted 1 | . . . . . . . . . . . . . . . . . . 1 Combat Hostiles 1 | . . . . . . . . . . . . . . . . . . 1 Parts Melted 6 | . . 2 . . . . 1 . . . . . . . . . . 3 Heat Transferred 5163 | . 475 1294 . . . 100 75 . . . . . . . . 200 . 3019 Parts Sabotaged . | . . . . . . . . . . . . . . . . . . . Parts Stolen . | . . . . . . . . . . . . . . . . . . . Parts Stripped . | . . . . . . . . . . . . . . . . . . . Power Chain Reactions 4 | . . . . . . . . . . . . . . . . 3 1 . Alert | -11 -10 -10 -8 -8 -6 -6 -6 -6 -6 -5 -5 -5 -5 -5 -4 -4 -4 -4 ------- Run | Yrd Mat Sub Rec Scr Fac Low Low Zio Dee Pro Fac Upp Upp Zhi Pro Fac Was Fac Peak Influence 1269 | 15 170 . 65 . 159 . . . . . 579 . . . . 970 480 1269 Initial 339 | . 9 . . . . . . . . . 93 . . . . 150 339 77 Average 283 | 6 29 . 9 . 78 . . . . . 245 . . . . 524 337 900 Maximum Alert Level 4 | . . . . . . . . . . . 2 . . . . 3 2 4 Low Security (%) 59 | 100 100 . 100 . 100 . . . . . 58 . . . . 4 7 10 Level 1 10 | . . . . . . . . . . . 20 . . . . 21 49 2 Level 2 16 | . . . . . . . . . . . 20 . . . . 56 42 9 Level 3 8 | . . . . . . . . . . . . . . . . 16 . 37 Level 4 5 | . . . . . . . . . . . . . . . . . . 40 Level 5 . | . . . . . . . . . . . . . . . . . . . High Security . | . . . . . . . . . . . . . . . . . . . Max Security . | . . . . . . . . . . . . . . . . . . . Squads Dispatched 34 | . . . . . 4 . . . . . 4 . . . . 10 . 16 Investigation 10 | . . . . . 2 . . . . . 1 . . . . 2 . 5 Extermination 9 | . . . . . 2 . . . . . 2 . . . . 3 . 2 Reinforcement 8 | . . . . . . . . . . . 1 . . . . 3 . 4 Assault 6 | . . . . . . . . . . . . . . . . 2 . 4 Garrison 1 | . . . . . . . . . . . . . . . . . . 1 Intercept . | . . . . . . . . . . . . . . . . . . . Searches Triggered . | . . . . . . . . . . . . . . . . . . . Construction Impeded 2 | . . . . . . . . . . . 1 . . . . . . 1 Haulers Reinforced 1 | . . . . . . . . . . . . . . . . 1 . . Active Scanning Responses . | . . . . . . . . . . . . . . . . . . . Cargo Convoy Interrupts 1 | . . . . . . . . . . . . . . . . . . 1 Stealth | -11 -10 -10 -8 -8 -6 -6 -6 -6 -6 -5 -5 -5 -5 -5 -4 -4 -4 -4 --------- Run | Yrd Mat Sub Rec Scr Fac Low Low Zio Dee Pro Fac Upp Upp Zhi Pro Fac Was Fac Distress Signals 9 | . 2 . . . 1 . . . . . 1 . . . . 1 . 4 Communications Jammed . | . . . . . . . . . . . . . . . . . . . Distress Signals . | . . . . . . . . . . . . . . . . . . . Times Spotted 270 | . 18 15 1 . 8 3 13 . 12 10 22 8 . . 8 37 8 107 Peak Tracking Total 12 | . 5 2 . . 3 4 4 . 5 2 4 4 . . 2 6 4 12 Tactical Retreats 18 | . . . . . . . . . . . 1 1 . . . 1 1 14 Traps | -11 -10 -10 -8 -8 -6 -6 -6 -6 -6 -5 -5 -5 -5 -5 -4 -4 -4 -4 ------- Run | Yrd Mat Sub Rec Scr Fac Low Low Zio Dee Pro Fac Upp Upp Zhi Pro Fac Was Fac Traps Triggered 7 | . 1 1 . . . . . . . . 1 . . . . 2 . 2 Indirectly . | . . . . . . . . . . . . . . . . . . . Trap Hack Attempts . | . . . . . . . . . . . . . . . . . . . Triggered . | . . . . . . . . . . . . . . . . . . . Disarmed . | . . . . . . . . . . . . . . . . . . . Reprogrammed . | . . . . . . . . . . . . . . . . . . . Reused 7 | . . 2 . . . . . . 5 . . . . . . . . . Traps Extracted . | . . . . . . . . . . . . . . . . . . . Installed 8 | . . 2 . . . . . . 6 . . . . . . . . . Triggered 7 | . . . . . . . 4 . . . . . . . 3 . . . Most Traps Carried 6 | . . 2 . . . . 6 6 6 . . . . . . . . . Objects Rigged 3 | . . . . . . . . . . . . . . . . . . 3 Exploded 1 | . . . . . . . . . . . . . . . . . . 1 Machines | -11 -10 -10 -8 -8 -6 -6 -6 -6 -6 -5 -5 -5 -5 -5 -4 -4 -4 -4 ---------- Run | Yrd Mat Sub Rec Scr Fac Low Low Zio Dee Pro Fac Upp Upp Zhi Pro Fac Was Fac Machines Disabled 33 | . . 1 1 . 1 3 1 3 2 . 4 1 . . . 9 . 7 Max in Single Turn 4 | . . 1 1 . 1 1 1 1 1 . 1 1 . . . 4 . 3 Garrison Access 2 | . . . . . . . . . . . . . . . . . . 2 Machines Repaired . | . . . . . . . . . . . . . . . . . . . Machines Dismantled 3 | . . . . . . . . 3 . . . . . . . . . . Machines Sabotaged . | . . . . . . . . . . . . . . . . . . . Overloaded Fab Kills . | . . . . . . . . . . . . . . . . . . . Hacking | -11 -10 -10 -8 -8 -6 -6 -6 -6 -6 -5 -5 -5 -5 -5 -4 -4 -4 -4 --------- Run | Yrd Mat Sub Rec Scr Fac Low Low Zio Dee Pro Fac Upp Upp Zhi Pro Fac Was Fac Machines Accessed 59 | . 9 3 9 3 7 2 2 1 . . 4 . . 4 . 2 . 13 Terminals 25 | . 7 . 6 . 3 . . . . . 1 . . . . 2 . 6 Fabricators 3 | . . . . . . . . . . . . . . . . . . 3 Repair Stations 5 | . 1 . . . 2 . . . . . 1 . . . . . . 1 Recycling Units 7 | . 1 . 3 . 1 . . . . . 1 . . . . . . 1 Scanalyzers 2 | . . . . . 1 . . . . . 1 . . . . . . . Garrison Access 2 | . . . . . . . . . . . . . . . . . . 2 Total Hacks 184 | . 29 7 27 31 19 6 4 2 . . 6 . . 17 . 4 . 32 Successful 119 | . 15 7 15 31 6 6 4 2 . . 2 . . 17 . . . 14 Failed 64 | . 14 . 11 . 13 . . . . . 4 . . . . 4 . 18 Catastrophic 9 | . 1 . 1 . 3 . . . . . . . . . . 1 . 3 Database Lockouts 1 | . . . 1 . . . . . . . . . . . . . . . Manual 71 | . 21 . 20 . 8 . . 1 . . 3 . . . . 4 . 14 Terminals 78 | . 25 . 21 . 10 . . . . . 2 . . . . 4 . 16 Fabricators 8 | . . . . . . . . . . . . . . . . . . 8 Repair Stations 10 | . 3 . . . 3 . . . . . 2 . . . . . . 2 Recycling Units 12 | . 1 . 6 . 2 . . . . . 1 . . . . . . 2 Scanalyzers 5 | . . . . . 4 . . . . . 1 . . . . . . . Garrison Access 4 | . . . . . . . . . . . . . . . . . . 4 Terminal Hacks 87 | . 9 7 6 31 2 6 4 2 . . . . . 17 . . . 3 Record 40 | . . 5 . 22 . 5 3 . . . . . . 5 . . . . Part Schematic 9 | . . . 3 . . . . 2 . . . . . 4 . . . . Robot Analysis 16 | . 4 . . 8 . . . . . . . . . 4 . . . . Prototype ID Bank 7 | . 1 . 2 . . . . . . . . . . 4 . . . . Open Door 3 | . . 1 . . . 1 1 . . . . . . . . . . . Level Access Points 1 | . . . . . . . . . . . . . . . . . . 1 Branch Access Points 1 | . . . . . . . . . . . . . . . . . . 1 Terminal Index 1 | . . . 1 . . . . . . . . . . . . . . . Recycling Unit Index 1 | . . . . . 1 . . . . . . . . . . . . . Unreport Threat 1 | . . . . . . . . . . . . . . . . . . 1 Locate Traps 2 | . 2 . . . . . . . . . . . . . . . . . Zone Layout 3 | . 2 . . . 1 . . . . . . . . . . . . . Derelict Proto ID Bank 1 | . . . . 1 . . . . . . . . . . . . . . Release Object 1 | . . 1 . . . . . . . . . . . . . . . . Fabricator Hacks 3 | . . . . . . . . . . . . . . . . . . 3 Load Schematic 3 | . . . . . . . . . . . . . . . . . . 3 Repair Station Hacks 3 | . 1 . . . . . . . . . . . . . . . . 2 Scan Component 2 | . 1 . . . . . . . . . . . . . . . . 1 Repair 1 | . . . . . . . . . . . . . . . . . . 1 Recycling Unit Hacks 1 | . . . 1 . . . . . . . . . . . . . . . Retrieve Components 1 | . . . 1 . . . . . . . . . . . . . . . Scanalyzer 1 | . . . . . 1 . . . . . . . . . . . . . Insert Component 1 | . . . . . 1 . . . . . . . . . . . . . Garrison Access Hacks 2 | . . . . . . . . . . . . . . . . . . 2 Seal Access 2 | . . . . . . . . . . . . . . . . . . 2 Unauthorized Hacks 22 | . 5 . 8 . 3 . . . . . 2 . . . . . . 4 Terminals 15 | . 5 . 6 . 1 . . . . . 1 . . . . . . 2 Botnet 4 | . . . 1 . 1 . . . . . 1 . . . . . . 1 Detonate 1 | . . . . . . . . . . . . . . . . . . 1 Skim 10 | . 5 . 5 . . . . . . . . . . . . . . . Fabricators 1 | . . . . . . . . . . . . . . . . . . 1 Recompile 1 | . . . . . . . . . . . . . . . . . . 1 Repair Stations 3 | . . . . . 1 . . . . . 1 . . . . . . 1 Recycling Units 3 | . . . 2 . 1 . . . . . . . . . . . . . Reject 3 | . . . 2 . 1 . . . . . . . . . . . . . Scrapoids 3 | . . . . . 1 . . . . . 1 . . . . . . 1 Scanalyzers . | . . . . . . . . . . . . . . . . . . . Garrison Access . | . . . . . . . . . . . . . . . . . . . Data Cores Recovered 1 | . . . . . . . . . . . 1 . . . . . . . Used 1 | . . . . . . . . . . . 1 . . . . . . . Hacking Detections 36 | . 8 . 7 . 5 . . . . . 2 . . . . 2 . 12 Full Trace Events 5 | . . . . . 1 . . . . . . . . . . 1 . 3 Feedback Events . | . . . . . . . . . . . . . . . . . . . Feedback Blocked . | . . . . . . . . . . . . . . . . . . . Robot Schematics Acquired 2 | . . . . . . . . 2 . . . . . . . . . . Robots Built . | . . . . . . . . . . . . . . . . . . . Authchips . | . . . . . . . . . . . . . . . . . . . Time . | . . . . . . . . . . . . . . . . . . . Total Robot Build Rating . | . . . . . . . . . . . . . . . . . . . Part Schematics Acquired 69 | . . . 3 9 11 5 1 21 1 1 3 1 . 5 2 3 1 2 Parts Built . | . . . . . . . . . . . . . . . . . . . Authchips . | . . . . . . . . . . . . . . . . . . . Time . | . . . . . . . . . . . . . . . . . . . Total Part Build Rating . | . . . . . . . . . . . . . . . . . . . Parts Repaired 1 | . . . . . . . . . . . . . . . . . . 1 Time 28 | . . . . . . . . . . . . . . . . . . 28 Parts Recycled . | . . . . . . . . . . . . . . . . . . . Recycled Matter . | . . . . . . . . . . . . . . . . . . . Retrieved Matter . | . . . . . . . . . . . . . . . . . . . Retrieved Components 4 | . . . 4 . . . . . . . . . . . . . . . Parts Scanalyzed 1 | . . . . . 1 . . . . . . . . . . . . . Part Schematics Acquired . | . . . . . . . . . . . . . . . . . . . Parts Damaged . | . . . . . . . . . . . . . . . . . . . Bothacking | -11 -10 -10 -8 -8 -6 -6 -6 -6 -6 -5 -5 -5 -5 -5 -4 -4 -4 -4 ------------ Run | Yrd Mat Sub Rec Scr Fac Low Low Zio Dee Pro Fac Upp Upp Zhi Pro Fac Was Fac Used RIF Installer . | . . . . . . . . . . . . . . . . . . . Robots Hacked 5 | . . . . 5 . . . . . . . . . . . . . . Non-combat 2 | . . . . 2 . . . . . . . . . . . . . . Combat 3 | . . . . 3 . . . . . . . . . . . . . . Robot Hacks Applied 5 | . . . . 5 . . . . . . . . . . . . . . parse_system 5 | . . . . 5 . . . . . . . . . . . . . . Relay Couplers Released . | . . . . . . . . . . . . . . . . . . . Fabnet Peak Effective % . | . . . . . . . . . . . . . . . . . . . Robots Rewired 1 | . . . . . . . . . . . 1 . . . . . . . Allies Hacked 1 | . . . . . . . . . . . . . . . 1 . . . Hacks Repelled . | . . . . . . . . . . . . . . . . . . . Allies | -11 -10 -10 -8 -8 -6 -6 -6 -6 -6 -5 -5 -5 -5 -5 -4 -4 -4 -4 -------- Run | Yrd Mat Sub Rec Scr Fac Low Low Zio Dee Pro Fac Upp Upp Zhi Pro Fac Was Fac Total Allies 38 | . . . . . 5 . . 2 . . 6 . . . . . 18 7 Largest Group 18 | . . . . . 5 5 5 4 4 1 5 5 5 5 5 3 18 13 Highest-Rated Group 638 | . . . . . 143 143 143 248 248 96 235 235 235 235 235 141 638 453 Highest-Rated Ally 96 | . . . . . 31 31 31 96 96 96 96 47 47 47 47 47 50 58 Total Orders 4 | . . . . . . . . . . . 2 . . 2 . . . . STAY 1 | . . . . . . . . . . . . . . 1 . . . . FOLLOW 1 | . . . . . . . . . . . . . . 1 . . . . RETURN 2 | . . . . . . . . . . . 2 . . . . . . . Ally Attacks 487 | . . . . . . 9 49 . 55 17 9 9 . . 53 26 95 165 Total Damage 14082 | . . . . . . 182 663 . 1179 772 171 177 . . 1225 503 4669 4541 Kills 65 | . . . . . . 4 5 . 6 6 . 3 . . 4 5 7 25 Allies Corrupted 1 | . . . . . . . . . . . . . . . . . . 1 Allies Melted . | . . . . . . . . . . . . . . . . . . . Intel | -11 -10 -10 -8 -8 -6 -6 -6 -6 -6 -5 -5 -5 -5 -5 -4 -4 -4 -4 ------- Run | Yrd Mat Sub Rec Scr Fac Low Low Zio Dee Pro Fac Upp Upp Zhi Pro Fac Was Fac Robot Analysis Total 16 | . 4 . . 8 . . . . . . . . . 4 . . . . Derelict Logs Recovered 14 | . . 1 . 3 . 2 1 1 . 2 . 2 1 . 1 . . . Drone Launches 2 | . . . . . . . . . . . 2 . . . . . . . Drone Recoveries 2 | . . . . . . . . . . . 2 . . . . . . . Exploration | -11 -10 -10 -8 -8 -6 -6 -6 -6 -6 -5 -5 -5 -5 -5 -4 -4 -4 -4 ------------- Run | Yrd Mat Sub Rec Scr Fac Low Low Zio Dee Pro Fac Upp Upp Zhi Pro Fac Was Fac Turns Passed 23059 | 144 1745 3262 1765 3118 1000 944 978 1173 1512 758 802 701 775 243 519 1454 861 1305 Spaces Moved 15620 | 67 724 1588 897 2425 705 815 827 1008 1210 613 458 558 650 180 406 975 581 933 Core 396 | 2 . . . . . . . . . . . . . . . . . 394 Treads 1432 | 65 724 636 5 . . . . . . . . . . . . . . 2 Legs 9521 | . . . . . 705 815 827 1008 1210 613 458 558 650 180 406 975 581 535 Wheels 4269 | . . 952 892 2425 . . . . . . . . . . . . . . Hover . | . . . . . . . . . . . . . . . . . . . Flight 2 | . . . . . . . . . . . . . . . . . . 2 Fastest Speed 50 | 50 160 115 130 110 105 105 105 105 105 115 114 118 118 120 120 118 118 50 Average Speed 121 | 156 160 150 144 125 105 105 105 105 111 115 115 118 118 120 120 118 118 89 Slowest Speed 320 | 160 160 240 320 145 105 105 105 105 115 115 120 118 120 120 120 120 118 190 Overloaded Moves . | . . . . . . . . . . . . . . . . . . . Propulsion Burnouts . | . . . . . . . . . . . . . . . . . . . Robots Hopped 2 | . . . . . . . . . . . . . . . . . 1 1 Cave-ins Triggered . | . . . . . . . . . . . . . . . . . . . Teleports 1 | . . . . . . . . . . . . . . . . . . 1 Exploration Rate (%) 63 | 6 79 46 92 93 19 90 83 87 67 86 13 84 86 60 58 24 96 28 Regions Visited 18 Branch Regions 12 Pre-discovered Areas 17 | . . . 3 6 . 1 . 1 . 1 . 1 . 3 1 . . . Known Exits Taken 8 | . 1 . . . 1 1 1 . . 1 1 1 . . 1 . . . Unknown Exits Taken 8 | 1 . 1 1 1 . . . 1 1 . . . 1 1 . . . . Scrap Searched 41 | . . 13 . 10 . 3 2 3 . 1 . 5 3 . 1 . . . Spaces Dug 195 | . 5 . 3 . 31 13 35 . 4 11 22 11 . . . 30 28 2 Terrain Destroyed 998 | . 6 2 4 . 48 20 82 . 103 43 84 88 . . 22 259 164 73 Melee 34 | . . . 2 . 7 13 4 . . . 3 . . . . 2 2 1 Projectile 325 | . 6 2 2 . 18 . 26 . 25 43 50 21 . . 22 72 . 38 AOE 639 | . . . . . 23 7 52 . 78 . 31 67 . . . 185 162 34 Terrain Rammed . | . . . . . . . . . . . . . . . . . . . Walls Destroyed . | . . . . . . . . . . . . . . . . . . . Machines Disabled . | . . . . . . . . . . . . . . . . . . . Actions | -11 -10 -10 -8 -8 -6 -6 -6 -6 -6 -5 -5 -5 -5 -5 -4 -4 -4 -4 --------- Run | Yrd Mat Sub Rec Scr Fac Low Low Zio Dee Pro Fac Upp Upp Zhi Pro Fac Was Fac Total 19041 | 90 1201 2370 1346 2502 930 879 900 1067 1338 646 691 591 653 202 429 1195 735 1276 Wait 2256 | 2 385 651 415 14 138 13 20 21 48 6 144 16 1 4 5 82 118 173 Move 15599 | 66 723 1587 896 2424 704 814 826 1007 1209 612 457 557 649 179 405 975 578 931 Hop 2 | . . . . . . . . . . . . . . . . . 1 1 Pick Up 127 | 8 6 25 8 25 14 5 2 1 2 . 3 1 1 1 . 13 4 8 Fast Attach 85 | 6 4 8 3 4 1 3 2 3 13 . 2 . . 7 2 6 4 17 Attach 28 | . 1 3 . . 7 . . . 1 . 2 . . . . 2 3 9 Detach 20 | . . 2 . 2 1 . 1 1 5 . . . . . 1 3 3 1 Swap 145 | . 9 14 3 5 16 8 12 2 15 4 12 6 1 2 4 19 6 7 Drop 152 | . 10 31 5 23 12 9 3 4 15 . 3 2 1 7 2 12 5 8 Fire 420 | 8 53 47 10 . 20 7 21 . 21 24 30 9 . . 6 79 8 77 Melee 102 | . . . 4 5 17 20 13 1 3 . 5 . . 2 4 3 5 20 Ram . | . . . . . . . . . . . . . . . . . . . Kick 12 | . . . . . . . . . . . 5 . . . . 1 . 6 Crush 15 | . 10 . . . . . . . . . . . . . . . . 5 Escape Stasis 12 | . . . . . . . . . . . . . . . . . . 12 Rewire 31 | . . . 2 . . . . . . . 28 . . . . . . 1 Trap 8 | . . 2 . . . . . . 6 . . . . . . . . . Miscellaneous 27 | . . . . . . . . 27 . . . . . . . . . . Route ------- -11/Scrapyard -10/Materials (discovered 6 exits: *Mat x3 / [*Min x2] / *Sub) -10/Subcaves -8/Recycling (discovered 2 exits: *Fac / *Scr) -8/Scraptown (discovered 2 exits: *Fac x2) -6/Factory (discovered 3 exits: *Low x2 / Ext) -6/Lower Caves -6/Lower Caves (discovered 2 exits: *Fac / *Zio) -6/Zion (discovered 2 exits: [*Dee] / [*Pro]) -6/Deep Caves -5/Proximity Caves -5/Factory (discovered 6 exits: *Fac x4 / *Upp x2) -5/Upper Caves -5/Upper Caves (discovered 2 exits: Fac / *Zhi) -5/Zhirov -4/Proximity Caves -4/Factory (discovered 4 exits: *Res x3 / *Upp) -4/Waste -4/Factory (discovered 7 exits: *Res x4 / Upp x2 / Arm) History --------- Turn | Location | Event 54 | -11/Scrapyard | Discovered new exit (range 14) 145 | -11/Scrapyard | Entered Materials 304 | -10/Materials | Build established: Mutant 551 | -10/Materials | Discovered new exit (range 11) 648 | -10/Materials | Discovered new exit (range 9) 775 | -10/Materials | Discovered new exit (range 13) 911 | -10/Materials | Identified exit to Subcaves 962 | -10/Materials | Identified exit to Materials 962 | -10/Materials | Learned location of 1 exit from Materials 1071 | -10/Materials | Learned 2 Mines zone layouts 1096 | -10/Materials | Learned 2 Storage zone layouts 1890 | -10/Materials | Entered Subcaves 1976 | -10/Subcaves | Lost 3 parts (1p1n1u) 2221 | -10/Subcaves | Discovered new exit (range 18) 2614 | -10/Subcaves | Visited Clippyterm 2619 | -10/Subcaves | Learned Factory fabricator intel 2640 | -10/Subcaves | Shifting Twisted Machinery released Flamer 2678 | -10/Subcaves | Shifting Twisted Machinery released Slug Cannon 2763 | -10/Subcaves | Build established: Scavenger-Mutant 3077 | -10/Subcaves | Build established: Mutant 3104 | -10/Subcaves | Learned Materials interactive machine intel 3387 | -10/Subcaves | Core integrity fell below 50% 3577 | -10/Subcaves | Build established: Scavenger-Mutant 4685 | -10/Subcaves | Found SUBCON Basin 4953 | -10/Subcaves | Build established: Mutant 5152 | -10/Subcaves | Entered Recycling 5616 | -8/Recycling | Learned location of 1 exit from Lower Caves 5617 | -8/Recycling | Build established: Scavenger-Mutant 5682 | -8/Recycling | Learned location of 1 exit from Extension 5789 | -8/Recycling | Learned Factory security intel 5857 | -8/Recycling | Learned location of 1 exit from Lower Caves 5896 | -8/Recycling | Learned location of Zion (-6) 5944 | -8/Recycling | Learned Storage trap positions 6267 | -8/Recycling | Discovered new exit (range 12) 6417 | -8/Recycling | Scanned before Scraplab entrance 6437 | -8/Recycling | Entered Scraplab 6913 | -8/Recycling | Discovered new exit (range 3) 6917 | -8/Recycling | Entered Scraptown 7212 | -8/Scraptown | Discovered new exit (range 11) 7256 | -8/Scraptown | Heard Great Nut preacher, LISTEN AND RECITE! 7278 | -8/Scraptown | Scanned Subdweller tech in exchange for log data 7281 | -8/Scraptown | Learned location of 1 exit from Factory 7282 | -8/Scraptown | Learned location of Warlord (-4) 7284 | -8/Scraptown | Learned Research terminal intel 7323 | -8/Scraptown | Visited Spacefarers 7336 | -8/Scraptown | Visited Supply Room 7387 | -8/Scraptown | Visited Cyclists 7485 | -8/Scraptown | Visited Bundlers 7580 | -8/Scraptown | Visited IN-MT5's Study 7608 | -8/Scraptown | Visited CPS Storage 7650 | -8/Scraptown | Visited The Evicted 7673 | -8/Scraptown | Visited UFD Registry 7673 | -8/Scraptown | Registered with UFD as "Hardwarp" 7921 | -8/Scraptown | Visited Curators Association 7969 | -8/Scraptown | Visited Chapter 10 7995 | -8/Scraptown | Visited Modified Component R&D 8045 | -8/Scraptown | Visited Supply Room 8109 | -8/Scraptown | Visited Analyses Database 8144 | -8/Scraptown | Visited DA-N13 Charitable Foundation 8150 | -8/Scraptown | Found DCF Scrap (29 items) 8185 | -8/Scraptown | Visited Science Guys 8233 | -8/Scraptown | Visited Scrapoid Research Area 8315 | -8/Scraptown | Delivered Scrap Shield to a Scientist 8376 | -8/Scraptown | Build established: Mutant 8528 | -8/Scraptown | Visited Cartography Club 8555 | -8/Scraptown | Found Surveybot 17 Chip 8592 | -8/Scraptown | Learned location of Recycling (-8) 8592 | -8/Scraptown | Learned location of Extension (-6) 8592 | -8/Scraptown | Learned location of Armory (-4) 8592 | -8/Scraptown | Learned 16 Materials zone layouts 8592 | -8/Scraptown | Learned 16 Research zone layouts 8592 | -8/Scraptown | Learned 4 Storage zone layouts 8592 | -8/Scraptown | Learned 16 Lower Caves zone layouts 8592 | -8/Scraptown | Learned 20 Lower Caves zone layouts 8592 | -8/Scraptown | Learned 12 Upper Caves zone layouts 8592 | -8/Scraptown | Learned 20 Upper Caves zone layouts 8592 | -8/Scraptown | Learned 16 Proximity Caves zone layouts 8592 | -8/Scraptown | Learned 24 Proximity Caves zone layouts 8592 | -8/Scraptown | Learned Research emergency access door positions 8592 | -8/Scraptown | Learned location of 2 exits from Research 8592 | -8/Scraptown | Learned location of 2 exits from Lower Caves 8592 | -8/Scraptown | Learned location of 3 exits from Lower Caves 8624 | -8/Scraptown | Found Deep Structural Scanner 8822 | -8/Scraptown | Tech Extrapolator generated special schematic: Machine Rigger 8859 | -8/Scraptown | Visited Scrap Suit Storage 8864 | -8/Scraptown | Found Scrap Suit 9592 | -8/Scraptown | Entered Cyclist Reading Room 10030 | -8/Scraptown | Discovered new exit (range 3) 10035 | -8/Scraptown | Entered Factory 10035 | -6/Factory | Evolved 8 slots: Power x1, Propulsion x2, Utility x4, Weapon x1 10036 | -6/Factory | Identified exit to Lower Caves 10037 | -6/Factory | Identified exit to Extension 10039 | -6/Factory | Loaded intel: 6 fabricator locations 10337 | -6/Factory | Build established: Scrapper 10954 | -6/Factory | Scrapoid reinforcements arrived 11035 | -6/Factory | Entered Lower Caves 11035 | -6/Lower Caves | Accompanied by 5 allies 11036 | -6/Lower Caves | Identified exit to Lower Caves 11037 | -6/Lower Caves | UFD Scientist delivered a prototype 11039 | -6/Lower Caves | Found Prototype Protection 11045 | -6/Lower Caves | Learned 4 Factory zone layouts 11165 | -6/Lower Caves | Learned Factory garrison access intel 11256 | -6/Lower Caves | Build established: Commander-Scrapper 11288 | -6/Lower Caves | Learned Research stockpile data 11851 | -6/Lower Caves | Destroyed ZS-EXX(g) 11979 | -6/Lower Caves | Entered another Lower Caves area 11979 | -6/Lower Caves | Accompanied by 5 allies 11980 | -6/Lower Caves | Identified exit to Zion 11980 | -6/Lower Caves | Identified exit to Factory 12194 | -6/Lower Caves | Learned 8 Research zone layouts 12385 | -6/Lower Caves | Learned Factory emergency access door positions 12521 | -6/Lower Caves | Lost 3 allies 12791 | -6/Lower Caves | Build established: Scrapper 12945 | -6/Lower Caves | Found Scrap Suit 12957 | -6/Lower Caves | Entered Zion 12957 | -6/Zion | Accompanied by 2 allies 13019 | -6/Zion | Discovered new exit (range 12) 13137 | -6/Zion | Build established: Derelict-Scrapper 13253 | -6/Zion | Given the Hacking Drone Bay 13335 | -6/Zion | Given A8's code to call for help 13506 | -6/Zion | Turned away by Imprinter 13573 | -6/Zion | Found CR-A16's Pointy Stick 13581 | -6/Zion | Tech Extrapolator generated special schematic: Heat Bomb Trap 13600 | -6/Zion | Learned location of 1 exit from Factory 13865 | -6/Zion | Discovered new exit (range 5) 13879 | -6/Zion | Enhanced Grunt warped into view, answering call for help 13885 | -6/Zion | Enhanced Grunt warped into view, answering call for help 14026 | -6/Zion | Found Prototype Device 14026 | -6/Zion | Identified Hacking Drone Bay 14117 | -6/Zion | Saw the warning signs outside the Deep Caves entrance 14130 | -6/Zion | Entered Deep Caves 14130 | -6/Deep Caves | Accompanied by 4 allies 14473 | -6/Deep Caves | Attacked by Z-Imprinter 14484 | -6/Deep Caves | Allies destroyed Z-Imprinter 14522 | -6/Deep Caves | Z-Facility disabled 14624 | -6/Deep Caves | Found Prototype Protection 14624 | -6/Deep Caves | Identified Zio. Weapon Casing 14725 | -6/Deep Caves | Found Prototype Device 14725 | -6/Deep Caves | Identified Exp. Thermal Shield 14869 | -6/Deep Caves | Build established: Scrapper 15169 | -6/Deep Caves | Discovered new exit (range 6) 15288 | -6/Deep Caves | Found Scrap Suit 15642 | -6/Deep Caves | Entered Proximity Caves 15642 | -5/Proximity Caves | Accompanied by 1 ally 15793 | -5/Proximity Caves | Spotted B-75 Beast 15803 | -5/Proximity Caves | Allies destroyed B-75 Beast 16017 | -5/Proximity Caves | Attracted the attention of an 0b10 checkpoint 16090 | -5/Proximity Caves | Learned Factory stockpile data 16400 | -5/Proximity Caves | Entered Factory 16400 | -5/Factory | Accompanied by 1 ally 16400 | -5/Factory | Evolved 2 slots: Propulsion x1, Utility x1 16401 | -5/Factory | Identified exit to Factory 16405 | -5/Factory | Loaded intel: 4 garrison access locations 16449 | -5/Factory | Identified exit to Upper Caves 16695 | -5/Factory | Build established: Scavenger-Scrapper 17186 | -5/Factory | Scrapoids reinforcements arrived? 17202 | -5/Factory | Entered Upper Caves 17202 | -5/Upper Caves | Accompanied by 5 allies 17203 | -5/Upper Caves | Identified exit to Upper Caves 17235 | -5/Upper Caves | Attacked by a delusional Derelict stockpiling parts 17324 | -5/Upper Caves | Attracted the attention of an 0b10 checkpoint 17903 | -5/Upper Caves | Entered another Upper Caves area 17903 | -5/Upper Caves | Accompanied by 5 allies 17905 | -5/Upper Caves | Discovered new exit (range 129) 17916 | -5/Upper Caves | Encountered a Warlord checkpoint 18678 | -5/Upper Caves | Entered Zhirov 18678 | -5/Zhirov | Accompanied by 5 allies 18678 | -5/Zhirov | Discovered new exit (range 4) 18700 | -5/Zhirov | Met Zhirov 18726 | -5/Zhirov | Learned location of Quarantine (-2) 18726 | -5/Zhirov | Learned location of Testing (-3) 18726 | -5/Zhirov | Learned location of Command (-1) 18734 | -5/Zhirov | Zhirov requested help retrieving the SGEMP Prototype 18755 | -5/Zhirov | Found Alien Artifact 18755 | -5/Zhirov | Identified Integrated Reactor 18755 | -5/Zhirov | Installed Integrated Reactor, increased core energy generation (+10) 18857 | -5/Zhirov | Found Alien Artifact 18921 | -5/Zhirov | Entered Proximity Caves 18921 | -4/Proximity Caves | Accompanied by 5 allies 19038 | -4/Proximity Caves | Spotter reported a threat 19122 | -4/Proximity Caves | Ambushed by research squad 19220 | -4/Proximity Caves | Spotted B-86 Titan 19234 | -4/Proximity Caves | Allies destroyed B-86 Titan 19247 | -4/Proximity Caves | Found Scrap Suit 19440 | -4/Proximity Caves | Entered Factory 19440 | -4/Factory | Accompanied by 3 allies 19440 | -4/Factory | Evolved 2 slots: Propulsion x1, Utility x1 19441 | -4/Factory | Identified exit to Research 19441 | -4/Factory | Identified exit to Upper Caves 19441 | -4/Factory | Identified Enh. Scrap Shield 19479 | -4/Factory | Tech Extrapolator generated special schematic: Energy Deflector 19577 | -4/Factory | Discovered exit to Research (range 13) 19610 | -4/Factory | Lost 3 allies 19756 | -4/Factory | Build established: Scavenger-Gunner 20190 | -4/Factory | First assault squad dispatched 20894 | -4/Factory | Sucked down chute 20894 | -4/Factory | Entered Waste 20916 | -4/Waste | Spotted C-40 Crusher 20920 | -4/Waste | Spotted C-40 Crusher 20922 | -4/Waste | Destroyed C-40 Crusher 20922 | -4/Waste | Destroyed C-40 Crusher 20933 | -4/Waste | Spotted C-40 Crusher 20978 | -4/Waste | Crushed by Compactor (0 parts destroyed, 1 dropped) 20980 | -4/Waste | Spotted C-40 Crusher 20992 | -4/Waste | Spotted C-40 Crusher 21019 | -4/Waste | Crushed by Compactor (1 part destroyed) 21022 | -4/Waste | Crushed by Compactor (1 part destroyed) 21066 | -4/Waste | Discovered new exit (range 13) 21129 | -4/Waste | Warlord forces began an assault 21183 | -4/Waste | Allies destroyed C-40 Crusher 21183 | -4/Waste | Allies destroyed C-40 Crusher 21185 | -4/Waste | Allies destroyed C-40 Crusher 21216 | -4/Waste | Lost 3 allies 21231 | -4/Waste | Allies destroyed C-40 Crusher 21277 | -4/Waste | Build established: Scavenger-Mutant 21755 | -4/Waste | Entered Factory 21755 | -4/Factory | Accompanied by 13 allies 21869 | -4/Factory | Spotted B-86 Titan 21886 | -4/Factory | Allies destroyed B-86 Titan 21903 | -4/Factory | Lost 3 allies 22010 | -4/Factory | Tech Extrapolator generated special schematic: Hyp. Alpha Cannon 22073 | -4/Factory | P-70 Sage assimilated allied 4A-RZQ(b) 22114 | -4/Factory | Lost 3 allies 22210 | -4/Factory | Repaired Ovr. Coil Gun 22255 | -4/Factory | First assault squad dispatched 22264 | -4/Factory | Lost 4 allies 22339 | -4/Factory | Lost 5 parts (2p1n2w) 22351 | -4/Factory | Destroyed 7 combat bots 22400 | -4/Factory | Identified Transdimensional Reconstructor 22400 | -4/Factory | Warped through subspace 22428 | -4/Factory | Lost 5 parts (2n2u1w) 22460 | -4/Factory | Found Quantum Capacitor 22486 | -4/Factory | Scrapoids reinforcements arrived? 22499 | -4/Factory | Garrison activated, responded to threat 22554 | -4/Factory | Lost 3 allies 22574 | -4/Factory | Cargo convoy interrupted 22727 | -4/Factory | Build established: Scavenger-Gunner 22792 | -4/Factory | Identified exit to Armory 22839 | -4/Factory | Core integrity fell below 50% 22869 | -4/Factory | Lost 12 parts (1p7n2u2w) 23004 | -4/Factory | System corruption reached 10% 23029 | -4/Factory | Core integrity fell below 20% 23060 | -4/Factory | Destroyed by H-71 Marshal with Heavy Mass Driver Last Messages --------------- Dispatching Investigation squad. 23043_ Dropped Hpw. Tractor Beam. 23044_ Acquired Authchip [Weapon]. 23045_ System corrupted: Matter fused (-9). 23050_ Sneak attack on H-77 Assassin. 23050_ Dirty Datajack expended. 23050_ Splicing H-77 Assassin... Shutting down primary systems. 23050_ H-77 Assassin springs to life. 23050_ Penetrated by Slug. 23050_ Nuclear Pulse Array destroyed. 23050_ Slammed into H-77 Assassin. 23051_ Slug penetrates Wall. 23052_ Slammed into H-77 Assassin. 23054_ Penetrated by Slug. 23054_ Slug penetrates Wall. 23055_ Slammed into Y-64 Sentinel. 23057_ Penetrated by Slug. 23058_ Slug penetrates Y-64 Sentinel. 23058_ Slammed into Y-64 Sentinel. Map ----- +----------------------------------------------------+ | #############+########## #???????????????????? | | #???????????????????? | | #???????????????????? | | #???????????????????? | | #???????????????????? | | / #???????????????????? | | ######+### ########???????????????????? | | # # #??????????????????????????? | | ""# # #??????????????????????????? | | ""# # #??????????????????????????? | | ""#"""" # ##############?????????????? | | ""#"""" # # """" #????????????#? | | ""#""""! # # """ """""" +??????????? #? | | ""#"""" ######## # """ ""F "" #??????????? #? | | ""#"""" #??????# # """ """! #?????????? #? | | #"""" #??????# # #????????? #? | | ""# #??????# # #???????? #? | | ""# #??????? + +???????? ?? | | "?# /#????????? # #??????? #??? | | ??# #?????????? # #?????? #??? | | ??########??????????# # * #????? #??? | | ????????????????????# # ###### #??? | | ????????????????????# / / #??? | | ????????????????????# ################# ##+##????? | | ????????????????????# ### % ###### ??# #????????? | | ????????????????????#hh @